[Event "Titled Tuesday Blitz June 6 Early 2023"]
[White "LeoLV10"]
[Black "Moral Garcia, Serafin"]
[BlackFideId "2201925"]
[WhiteElo "2425"]
[BlackElo "2274"]
[Result "1-0"]
[Round "8"]
[TimeControl "180+2"]
[Date "2023.06.06"]
[WhiteClock "0:01:05"]
[BlackClock "0:00:16"]
[Board "85"]

1. e4 {[%clk 0:03:00]}  e5 {[%clk 0:02:58]} 2. Nf3 {[%clk 0:02:58]}  Nc6 {[%clk 0:02:59]} 3. Bb5 {[%clk 0:02:58]}  a6 {[%clk 0:02:59]} 4. Ba4 {[%clk 0:02:58]}  Nf6 {[%clk 0:02:59]} 5. O-O {[%clk 0:02:58]}  Be7 {[%clk 0:03:00]} 6. Re1 {[%clk 0:02:57]}  b5 {[%clk 0:03:00]} 7. Bb3 {[%clk 0:02:57]}  d6 {[%clk 0:03:00]} 8. c3 {[%clk 0:02:57]}  O-O {[%clk 0:03:00]} 9. d4 {[%clk 0:02:58]}  Bg4 {[%clk 0:02:59]} 10. d5 {[%clk 0:02:54]}  Na5 {[%clk 0:02:59]} 11. Bc2 {[%clk 0:02:54]}  Qc8 {[%clk 0:03:00]} 12. h3 {[%clk 0:02:54]}  Bd7 {[%clk 0:02:59]} 13. Nbd2 {[%clk 0:02:51]}  c6 {[%clk 0:02:59]} 14. dxc6 {[%clk 0:02:48]}  Nxc6 {[%clk 0:02:58]} 15. Nf1 {[%clk 0:02:45]}  Be6 {[%clk 0:02:57]} 16. Ne3 {[%clk 0:02:46]}  Rd8 {[%clk 0:02:56]} 17. Nd5 {[%clk 0:02:45]}  Qb7 {[%clk 0:02:46]} 18. Bb3 {[%clk 0:02:38]}  Na5 {[%clk 0:02:42]} 19. Nxe7+ {[%clk 0:02:32]}  Qxe7 {[%clk 0:02:41]} 20. Bd5 {[%clk 0:02:33]}  Rac8 {[%clk 0:02:36]} 21. Bg5 {[%clk 0:02:28]}  Bxd5 {[%clk 0:02:29]} 22. exd5 {[%clk 0:02:24]}  h6 {[%clk 0:02:28]} 23. Bh4 {[%clk 0:02:13]}  g5 {[%clk 0:02:22]} 24. Nxg5 {[%clk 0:02:13]}  hxg5 {[%clk 0:02:21]} 25. Bxg5 {[%clk 0:02:13]}  Kg7 {[%clk 0:01:01]} 26. Re3 {[%clk 0:02:10]}  Qd7 {[%clk 0:00:57]} 27. Rg3 {[%clk 0:02:08]}  Ne4 {[%clk 0:00:55]} 28. Bxd8+ {[%clk 0:01:59]}  Nxg3 {[%clk 0:00:54]} 29. Bxa5 {[%clk 0:02:00]}  Nf5 {[%clk 0:00:52]} 30. Qg4+ {[%clk 0:01:57]}  Kf8 {[%clk 0:00:49]} 31. Bb4 {[%clk 0:01:54]}  Rd8 {[%clk 0:00:46]} 32. a4 {[%clk 0:01:51]}  Ne7 {[%clk 0:00:42]} 33. axb5 {[%clk 0:01:50]}  Qxg4 {[%clk 0:00:39]} 34. hxg4 {[%clk 0:01:51]}  axb5 {[%clk 0:00:39]} 35. Ra6 {[%clk 0:01:48]}  f6 {[%clk 0:00:27]} 36. Bxd6 {[%clk 0:01:45]}  Kf7 {[%clk 0:00:27]} 37. Bxe7 {[%clk 0:01:43]}  Kxe7 {[%clk 0:00:27]} 38. Ra7+ {[%clk 0:01:38]}  Ke8 {[%clk 0:00:25]} 39. Ra6 {[%clk 0:01:34]}  Ke7 {[%clk 0:00:25]} 40. d6+ {[%clk 0:01:27]}  Ke6 {[%clk 0:00:24]} 41. f3 {[%clk 0:01:26]}  Rc8 {[%clk 0:00:19]} 42. Kf2 {[%clk 0:01:25]}  Rc4 {[%clk 0:00:18]} 43. Rb6 {[%clk 0:01:23]}  b4 {[%clk 0:00:17]} 44. Rxb4 {[%clk 0:01:23]}  Rc6 {[%clk 0:00:18]} 45. d7 {[%clk 0:01:24]}  Kxd7 {[%clk 0:00:16]} 46. Ke3 {[%clk 0:01:24]}  Rd6 {[%clk 0:00:17]} 47. Rb7+ {[%clk 0:01:20]}  Ke6 {[%clk 0:00:17]} 48. b4 {[%clk 0:01:17]}  Rd1 {[%clk 0:00:16]} 49. Rb6+ {[%clk 0:01:16]}  Kf7 {[%clk 0:00:16]} 50. Rc6 {[%clk 0:01:16]}  Rg1 {[%clk 0:00:16]} 51. Kf2 {[%clk 0:01:16]}  Rb1 {[%clk 0:00:15]} 52. Rc5 {[%clk 0:01:15]}  Ke6 {[%clk 0:00:16]} 53. b5 {[%clk 0:01:13]}  Kd6 {[%clk 0:00:16]} 54. Rc6+ {[%clk 0:01:14]}  Kd5 {[%clk 0:00:16]} 55. c4+ {[%clk 0:01:14]}  Kd4 {[%clk 0:00:16]} 56. Rxf6 {[%clk 0:01:13]}  Kxc4 {[%clk 0:00:15]} 57. b6 {[%clk 0:01:13]}  Kc5 {[%clk 0:00:16]} 58. Re6 {[%clk 0:01:13]}  Kd5 {[%clk 0:00:16]} 59. Rf6 {[%clk 0:01:13]}  e4 {[%clk 0:00:15]} 60. Rf5+ {[%clk 0:01:05]}  Kd4 {[%clk 0:00:16]} 61. Rf4 {[%clk 0:01:05]}  Rb2+ {[%clk 0:00:16]} 62. Kg3 {[%clk 0:01:05]} 1-0


[Site "https://www.chess.com"]

[Event "Titled Tuesday Blitz June 6 Early 2023"]
[White "Koridze, Lile"]
[Black "Ronka, Erik"]
[WhiteFideId "13612514"]
[BlackFideId "505080"]
[WhiteElo "2047"]
[BlackElo "2264"]
[Result "1/2-1/2"]
[Round "8"]
[TimeControl "180+2"]
[Date "2023.06.06"]
[WhiteClock "0:00:08"]
[BlackClock "0:00:04"]
[Board "87"]

1. d4 {[%clk 0:03:00]}  d5 {[%clk 0:02:59]} 2. c4 {[%clk 0:02:59]}  e6 {[%clk 0:02:57]} 3. Nf3 {[%clk 0:02:58]}  a6 {[%clk 0:02:58]} 4. g3 {[%clk 0:02:56]}  dxc4 {[%clk 0:02:58]} 5. Bg2 {[%clk 0:02:56]}  b5 {[%clk 0:02:58]} 6. a4 {[%clk 0:02:50]}  Bb7 {[%clk 0:02:57]} 7. O-O {[%clk 0:02:49]}  c5 {[%clk 0:02:50]} 8. b3 {[%clk 0:02:44]}  b4 {[%clk 0:02:14]} 9. bxc4 {[%clk 0:02:39]}  Nf6 {[%clk 0:02:15]} 10. dxc5 {[%clk 0:02:39]}  Qxd1 {[%clk 0:02:12]} 11. Rxd1 {[%clk 0:02:39]}  Bxc5 {[%clk 0:02:13]} 12. Nbd2 {[%clk 0:02:39]}  Nbd7 {[%clk 0:02:05]} 13. Nb3 {[%clk 0:02:38]}  O-O {[%clk 0:01:46]} 14. Bf4 {[%clk 0:02:28]}  Rfc8 {[%clk 0:01:39]} 15. Na5 {[%clk 0:02:19]}  Be4 {[%clk 0:01:38]} 16. Ne5 {[%clk 0:02:04]}  Nxe5 {[%clk 0:01:32]} 17. Bxe5 {[%clk 0:02:02]}  Bxg2 {[%clk 0:01:32]} 18. Kxg2 {[%clk 0:02:02]}  Bb6 {[%clk 0:01:18]} 19. Nb3 {[%clk 0:02:00]}  Rxc4 {[%clk 0:01:16]} 20. a5 {[%clk 0:01:59]}  Bd8 {[%clk 0:01:09]} 21. Rac1 {[%clk 0:01:56]}  Rxc1 {[%clk 0:01:02]} 22. Rxc1 {[%clk 0:01:56]}  Nd7 {[%clk 0:01:00]} 23. Bd6 {[%clk 0:01:55]}  f6 {[%clk 0:00:52]} 24. Bxb4 {[%clk 0:01:49]}  Rb8 {[%clk 0:00:52]} 25. Rd1 {[%clk 0:01:47]}  Ne5 {[%clk 0:00:39]} 26. Nc5 {[%clk 0:01:46]}  Nc6 {[%clk 0:00:35]} 27. Bc3 {[%clk 0:01:20]}  Bxa5 {[%clk 0:00:30]} 28. Bxa5 {[%clk 0:01:18]}  Nxa5 {[%clk 0:00:30]} 29. Nxa6 {[%clk 0:01:19]}  Re8 {[%clk 0:00:28]} 30. Nc5 {[%clk 0:01:08]}  Re7 {[%clk 0:00:26]} 31. Rd8+ {[%clk 0:01:07]}  Kf7 {[%clk 0:00:26]} 32. Ra8 {[%clk 0:01:06]}  Nc6 {[%clk 0:00:26]} 33. Ra6 {[%clk 0:01:01]}  Nb4 {[%clk 0:00:25]} 34. Rb6 {[%clk 0:00:58]}  Nd5 {[%clk 0:00:25]} 35. Rb7 {[%clk 0:00:57]}  Nc3 {[%clk 0:00:23]} 36. e3 {[%clk 0:00:53]}  Rxb7 {[%clk 0:00:20]} 37. Nxb7 {[%clk 0:00:53]}  Ke7 {[%clk 0:00:21]} 38. Nc5 {[%clk 0:00:53]}  Nd5 {[%clk 0:00:22]} 39. Kf3 {[%clk 0:00:53]}  f5 {[%clk 0:00:21]} 40. Ke2 {[%clk 0:00:52]}  e5 {[%clk 0:00:21]} 41. Kd3 {[%clk 0:00:51]}  Nf6 {[%clk 0:00:21]} 42. f3 {[%clk 0:00:49]}  Kd6 {[%clk 0:00:21]} 43. Nb7+ {[%clk 0:00:48]}  Kd5 {[%clk 0:00:21]} 44. Na5 {[%clk 0:00:46]}  e4+ {[%clk 0:00:22]} 45. Ke2 {[%clk 0:00:46]}  exf3+ {[%clk 0:00:22]} 46. Kxf3 {[%clk 0:00:47]}  Nd7 {[%clk 0:00:21]} 47. Nb3 {[%clk 0:00:47]}  Ne5+ {[%clk 0:00:19]} 48. Kf4 {[%clk 0:00:47]}  g6 {[%clk 0:00:17]} 49. Nd4 {[%clk 0:00:45]}  Ng4 {[%clk 0:00:17]} 50. h3 {[%clk 0:00:44]}  Nf2 {[%clk 0:00:17]} 51. g4 {[%clk 0:00:41]}  Nxh3+ {[%clk 0:00:06]} 52. Kg3 {[%clk 0:00:42]}  fxg4 {[%clk 0:00:04]} 53. Kxg4 {[%clk 0:00:42]}  Nf2+ {[%clk 0:00:04]} 54. Kg5 {[%clk 0:00:41]}  Ke4 {[%clk 0:00:03]} 55. Ne6 {[%clk 0:00:37]}  Kxe3 {[%clk 0:00:03]} 56. Nf8 {[%clk 0:00:38]}  Ne4+ {[%clk 0:00:03]} 57. Kh6 {[%clk 0:00:37]}  g5 {[%clk 0:00:04]} 58. Kh5 {[%clk 0:00:23]}  Kf4 {[%clk 0:00:04]} 59. Ne6+ {[%clk 0:00:22]}  Kf5 {[%clk 0:00:04]} 60. Nf8 {[%clk 0:00:20]}  Nf6+ {[%clk 0:00:04]} 61. Kh6 {[%clk 0:00:15]}  g4 {[%clk 0:00:04]} 62. Ng6 {[%clk 0:00:10]}  g3 {[%clk 0:00:01]} 63. Nh4+ {[%clk 0:00:10]}  Kg4 {[%clk 0:00:02]} 64. Ng2 {[%clk 0:00:10]}  Ne4 {[%clk 0:00:02]} 65. Kxh7 {[%clk 0:00:08]}  Ng5+ {[%clk 0:00:02]} 66. Kg6 {[%clk 0:00:08]}  Nh3 {[%clk 0:00:03]} 67. Kf6 {[%clk 0:00:08]}  Nf4 {[%clk 0:00:03]} 68. Ne3+ {[%clk 0:00:06]}  Kf3 {[%clk 0:00:03]} 69. Nf5 {[%clk 0:00:07]}  g2 {[%clk 0:00:03]} 70. Nh4+ {[%clk 0:00:07]}  Kf2 {[%clk 0:00:04]} 71. Nxg2 {[%clk 0:00:08]} 1/2-1/2


[Site "https://www.chess.com"]

[Event "Titled Tuesday Blitz June 6 Early 2023"]
[White "Janaszak, Dawid"]
[Black "Lopez Idarraga, Daniel Eduardo"]
[WhiteFideId "1119206"]
[BlackFideId "4405501"]
[WhiteElo "2220"]
[BlackElo "1980"]
[Result "0-1"]
[Round "8"]
[TimeControl "180+2"]
[Date "2023.06.06"]
[WhiteClock "0:00:13"]
[BlackClock "0:01:13"]
[Board "88"]

1. d4 {[%clk 0:02:55]}  Nf6 {[%clk 0:02:59]} 2. c4 {[%clk 0:02:51]}  g6 {[%clk 0:02:58]} 3. Nc3 {[%clk 0:02:47]}  Bg7 {[%clk 0:02:58]} 4. h4 {[%clk 0:02:47]}  O-O {[%clk 0:02:55]} 5. h5 {[%clk 0:02:48]}  Nxh5 {[%clk 0:02:55]} 6. e4 {[%clk 0:02:48]}  d6 {[%clk 0:02:53]} 7. Nge2 {[%clk 0:02:41]}  Nc6 {[%clk 0:02:51]} 8. f3 {[%clk 0:02:38]}  e5 {[%clk 0:02:50]} 9. d5 {[%clk 0:02:37]}  Nd4 {[%clk 0:02:50]} 10. g4 {[%clk 0:02:38]}  Nxf3+ {[%clk 0:02:40]} 11. Kf2 {[%clk 0:02:38]}  Bxg4 {[%clk 0:02:40]} 12. Bh3 {[%clk 0:02:39]}  Bxh3 {[%clk 0:02:32]} 13. Rxh3 {[%clk 0:02:37]}  Nd4 {[%clk 0:02:26]} 14. Ng3 {[%clk 0:02:25]}  Nxg3 {[%clk 0:02:24]} 15. Kxg3 {[%clk 0:02:26]}  f5 {[%clk 0:02:24]} 16. Qh1 {[%clk 0:02:25]}  fxe4 {[%clk 0:02:19]} 17. Rxh7 {[%clk 0:02:22]}  Rf3+ {[%clk 0:02:17]} 18. Kg2 {[%clk 0:02:22]}  Qf6 {[%clk 0:02:10]} 19. Nxe4 {[%clk 0:02:18]}  Qf5 {[%clk 0:02:10]} 20. Qh4 {[%clk 0:01:24]}  Rf8 {[%clk 0:02:04]} 21. Bg5 {[%clk 0:01:15]}  Rf4 {[%clk 0:01:26]} 22. Rxg7+ {[%clk 0:00:49]}  Kxg7 {[%clk 0:01:25]} 23. Qh6+ {[%clk 0:00:44]}  Kg8 {[%clk 0:01:25]} 24. Ng3 {[%clk 0:00:34]}  Rg4 {[%clk 0:01:17]} 25. Rh1 {[%clk 0:00:13]}  Qf3+ {[%clk 0:01:13]} 0-1


[Site "https://www.chess.com"]

[Event "Titled Tuesday Blitz June 6 Early 2023"]
[White "Fernandez Siles, Luis"]
[Black "Devaev, Alexander"]
[WhiteFideId "2209420"]
[BlackFideId "4169395"]
[WhiteElo "2195"]
[BlackElo "2172"]
[Result "0-1"]
[Round "8"]
[TimeControl "180+2"]
[Date "2023.06.06"]
[WhiteClock "0:00:01"]
[BlackClock "0:00:04"]
[Board "89"]

1. d4 {[%clk 0:03:00]}  Nf6 {[%clk 0:02:23]} 2. c4 {[%clk 0:02:58]}  e6 {[%clk 0:02:22]} 3. Nf3 {[%clk 0:02:57]}  c5 {[%clk 0:02:20]} 4. d5 {[%clk 0:02:55]}  d6 {[%clk 0:02:06]} 5. Nc3 {[%clk 0:02:51]}  e5 {[%clk 0:02:05]} 6. e4 {[%clk 0:02:43]}  Be7 {[%clk 0:02:00]} 7. h3 {[%clk 0:02:43]}  a6 {[%clk 0:02:00]} 8. g4 {[%clk 0:02:40]}  Nbd7 {[%clk 0:02:01]} 9. g5 {[%clk 0:02:36]}  Ng8 {[%clk 0:01:55]} 10. Rg1 {[%clk 0:02:28]}  Nf8 {[%clk 0:01:55]} 11. h4 {[%clk 0:02:15]}  f5 {[%clk 0:01:14]} 12. exf5 {[%clk 0:02:13]}  Bxf5 {[%clk 0:01:13]} 13. Bd3 {[%clk 0:02:13]}  Bg6 {[%clk 0:00:56]} 14. Be3 {[%clk 0:01:54]}  Bh5 {[%clk 0:00:55]} 15. Ne4 {[%clk 0:01:39]}  Ng6 {[%clk 0:00:55]} 16. Ng3 {[%clk 0:01:32]}  Bg4 {[%clk 0:00:40]} 17. Bf5 {[%clk 0:01:27]}  Bxf5 {[%clk 0:00:38]} 18. Nxf5 {[%clk 0:01:27]}  Bf8 {[%clk 0:00:38]} 19. Nd2 {[%clk 0:01:21]}  N8e7 {[%clk 0:00:35]} 20. Nxe7 {[%clk 0:00:54]}  Bxe7 {[%clk 0:00:10]} 21. h5 {[%clk 0:00:53]}  Nf8 {[%clk 0:00:10]} 22. Ne4 {[%clk 0:00:28]}  Nd7 {[%clk 0:00:10]} 23. Qg4 {[%clk 0:00:23]}  Nf8 {[%clk 0:00:07]} 24. O-O-O {[%clk 0:00:18]}  Qd7 {[%clk 0:00:07]} 25. Qf3 {[%clk 0:00:16]}  O-O-O {[%clk 0:00:07]} 26. Kb1 {[%clk 0:00:14]}  Kb8 {[%clk 0:00:07]} 27. a3 {[%clk 0:00:12]}  Rc8 {[%clk 0:00:06]} 28. Ng3 {[%clk 0:00:11]}  Qd8 {[%clk 0:00:03]} 29. Nf5 {[%clk 0:00:11]}  Rg8 {[%clk 0:00:03]} 30. g6 {[%clk 0:00:10]}  h6 {[%clk 0:00:01]} 31. Ka2 {[%clk 0:00:04]}  Bf6 {[%clk 0:00:02]} 32. b3 {[%clk 0:00:04]}  Qd7 {[%clk 0:00:02]} 33. Qe4 {[%clk 0:00:04]}  Qc7 {[%clk 0:00:02]} 34. f4 {[%clk 0:00:03]}  Nd7 {[%clk 0:00:02]} 35. fxe5 {[%clk 0:00:02]}  Nxe5 {[%clk 0:00:03]} 36. Bf4 {[%clk 0:00:01]}  Rge8 {[%clk 0:00:04]} 37. Bxe5 {[%clk 0:00:01]}  Rxe5 {[%clk 0:00:03]} 38. Qf4 {[%clk 0:00:01]}  Rce8 {[%clk 0:00:04]} 39. Rd2 {[%clk 0:00:01]}  Qb6 {[%clk 0:00:04]} 0-1


[Site "https://www.chess.com"]

[Event "Titled Tuesday Blitz June 6 Early 2023"]
[White "Rosenberg, Evan S"]
[Black "Bas Mas, Jose Joaquin"]
[WhiteFideId "2019299"]
[BlackFideId "22219064"]
[WhiteElo "2357"]
[BlackElo "2212"]
[Result "0-1"]
[Round "8"]
[TimeControl "180+2"]
[Date "2023.06.06"]
[WhiteClock "0:00:20"]
[BlackClock "0:00:15"]
[Board "90"]

1. d4 {[%clk 0:02:54]}  d5 {[%clk 0:02:59]} 2. Nf3 {[%clk 0:02:52]}  Nf6 {[%clk 0:02:59]} 3. Bg5 {[%clk 0:02:52]}  e6 {[%clk 0:02:59]} 4. e3 {[%clk 0:02:52]}  Nbd7 {[%clk 0:02:59]} 5. c4 {[%clk 0:02:44]}  h6 {[%clk 0:02:59]} 6. Bh4 {[%clk 0:02:30]}  Be7 {[%clk 0:02:58]} 7. Nc3 {[%clk 0:02:24]}  O-O {[%clk 0:02:59]} 8. cxd5 {[%clk 0:02:23]}  exd5 {[%clk 0:03:00]} 9. Bd3 {[%clk 0:02:23]}  b6 {[%clk 0:03:00]} 10. O-O {[%clk 0:02:21]}  Bb7 {[%clk 0:03:01]} 11. Rc1 {[%clk 0:02:18]}  c5 {[%clk 0:03:02]} 12. Ne5 {[%clk 0:02:14]}  Nxe5 {[%clk 0:02:56]} 13. dxe5 {[%clk 0:02:13]}  Ne4 {[%clk 0:02:56]} 14. Bg3 {[%clk 0:02:06]}  Nxg3 {[%clk 0:02:44]} 15. hxg3 {[%clk 0:02:03]}  Re8 {[%clk 0:02:43]} 16. f4 {[%clk 0:02:02]}  a6 {[%clk 0:02:35]} 17. Qg4 {[%clk 0:01:55]}  Bc8 {[%clk 0:02:34]} 18. Qh5 {[%clk 0:01:45]}  d4 {[%clk 0:02:23]} 19. Ne4 {[%clk 0:01:33]}  dxe3 {[%clk 0:02:01]} 20. Rcd1 {[%clk 0:01:32]}  Qd4 {[%clk 0:01:58]} 21. Kh2 {[%clk 0:01:08]}  Bb7 {[%clk 0:01:50]} 22. Nf6+ {[%clk 0:00:59]}  Bxf6 {[%clk 0:01:44]} 23. Bh7+ {[%clk 0:00:57]}  Kxh7 {[%clk 0:01:44]} 24. Rxd4 {[%clk 0:00:58]}  cxd4 {[%clk 0:01:45]} 25. exf6 {[%clk 0:00:58]}  g6 {[%clk 0:01:36]} 26. Qe2 {[%clk 0:00:44]}  Rad8 {[%clk 0:01:29]} 27. Qc4 {[%clk 0:00:37]}  Bd5 {[%clk 0:01:13]} 28. Qxd4 {[%clk 0:00:30]}  Bxg2 {[%clk 0:01:13]} 29. Qc4 {[%clk 0:00:29]}  Bd5 {[%clk 0:01:04]} 30. Qxa6 {[%clk 0:00:28]}  Rd6 {[%clk 0:00:55]} 31. Re1 {[%clk 0:00:24]}  Rxf6 {[%clk 0:00:49]} 32. Qb5 {[%clk 0:00:24]}  Bc6 {[%clk 0:00:41]} 33. Qxb6 {[%clk 0:00:23]}  Rfe6 {[%clk 0:00:32]} 34. b4 {[%clk 0:00:16]}  Bf3 {[%clk 0:00:24]} 35. Qd4 {[%clk 0:00:14]}  Re4 {[%clk 0:00:20]} 36. Qd7 {[%clk 0:00:14]}  R8e7 {[%clk 0:00:20]} 37. Qd6 {[%clk 0:00:14]}  h5 {[%clk 0:00:16]} 38. b5 {[%clk 0:00:13]}  e2 {[%clk 0:00:10]} 39. b6 {[%clk 0:00:12]}  R4e6 {[%clk 0:00:11]} 40. Qd8 {[%clk 0:00:12]}  Rb7 {[%clk 0:00:10]} 41. Qd3 {[%clk 0:00:09]}  Bg4 {[%clk 0:00:08]} 42. Rb1 {[%clk 0:00:05]}  Rbxb6 {[%clk 0:00:06]} 43. Re1 {[%clk 0:00:04]}  Rbd6 {[%clk 0:00:05]} 44. Qc3 {[%clk 0:00:03]}  Rd1 {[%clk 0:00:05]} 45. a4 {[%clk 0:00:02]}  Rxe1 {[%clk 0:00:05]} 46. Qxe1 {[%clk 0:00:03]}  Rd6 {[%clk 0:00:06]} 47. Kg2 {[%clk 0:00:02]}  Rd1 {[%clk 0:00:06]} 48. Kf2 {[%clk 0:00:03]}  Rxe1 {[%clk 0:00:07]} 49. Kxe1 {[%clk 0:00:04]}  Bf3 {[%clk 0:00:07]} 50. a5 {[%clk 0:00:05]}  Kh6 {[%clk 0:00:07]} 51. a6 {[%clk 0:00:06]}  g5 {[%clk 0:00:06]} 52. a7 {[%clk 0:00:07]}  gxf4 {[%clk 0:00:05]} 53. gxf4 {[%clk 0:00:05]}  Kg6 {[%clk 0:00:05]} 54. a8=Q {[%clk 0:00:06]}  Bxa8 {[%clk 0:00:05]} 55. Kxe2 {[%clk 0:00:07]}  Kf5 {[%clk 0:00:06]} 56. Kf2 {[%clk 0:00:07]}  Kxf4 {[%clk 0:00:06]} 57. Kg1 {[%clk 0:00:08]}  Kg4 {[%clk 0:00:07]} 58. Kh2 {[%clk 0:00:09]}  f5 {[%clk 0:00:08]} 59. Kg1 {[%clk 0:00:10]}  Bd5 {[%clk 0:00:08]} 60. Kh2 {[%clk 0:00:11]}  Be6 {[%clk 0:00:08]} 61. Kg1 {[%clk 0:00:12]}  f4 {[%clk 0:00:09]} 62. Kh2 {[%clk 0:00:12]}  h4 {[%clk 0:00:10]} 63. Kg1 {[%clk 0:00:13]}  Bf5 {[%clk 0:00:11]} 64. Kh2 {[%clk 0:00:14]}  Bg6 {[%clk 0:00:12]} 65. Kg1 {[%clk 0:00:15]}  Bf5 {[%clk 0:00:12]} 66. Kh2 {[%clk 0:00:16]}  Be4 {[%clk 0:00:13]} 67. Kg1 {[%clk 0:00:17]}  h3 {[%clk 0:00:13]} 68. Kh2 {[%clk 0:00:18]}  Kh4 {[%clk 0:00:13]} 69. Kg1 {[%clk 0:00:19]}  Kg3 {[%clk 0:00:13]} 70. Kf1 {[%clk 0:00:19]}  Bf3 {[%clk 0:00:14]} 71. Kg1 {[%clk 0:00:20]}  h2+ {[%clk 0:00:14]} 72. Kf1 {[%clk 0:00:20]}  h1=Q# {[%clk 0:00:15]} 0-1


[Site "https://www.chess.com"]

[Event "Titled Tuesday Blitz June 6 Early 2023"]
[White "Papayan, Oleg"]
[Black "Rosh Jain"]
[WhiteFideId "4193911"]
[BlackFideId "25789465"]
[WhiteElo "2167"]
[BlackElo "2233"]
[Result "1-0"]
[Round "8"]
[TimeControl "180+2"]
[Date "2023.06.06"]
[WhiteClock "0:00:01"]
[BlackClock "0:00:01"]
[Board "92"]

1. e4 {[%clk 0:03:00]}  c5 {[%clk 0:02:57]} 2. d4 {[%clk 0:03:00]}  cxd4 {[%clk 0:02:56]} 3. Qxd4 {[%clk 0:03:01]}  Nc6 {[%clk 0:02:52]} 4. Qd3 {[%clk 0:03:01]}  Nf6 {[%clk 0:02:49]} 5. Nc3 {[%clk 0:03:01]}  d6 {[%clk 0:02:31]} 6. Nf3 {[%clk 0:03:01]}  g6 {[%clk 0:02:31]} 7. Be2 {[%clk 0:03:02]}  Bg7 {[%clk 0:02:31]} 8. O-O {[%clk 0:03:02]}  Bd7 {[%clk 0:02:32]} 9. Nd5 {[%clk 0:03:02]}  O-O {[%clk 0:02:32]} 10. c3 {[%clk 0:03:02]}  Rc8 {[%clk 0:02:31]} 11. Bg5 {[%clk 0:03:03]}  Nxd5 {[%clk 0:02:11]} 12. exd5 {[%clk 0:03:03]}  Bf5 {[%clk 0:02:09]} 13. Qb5 {[%clk 0:02:46]}  Ne5 {[%clk 0:01:52]} 14. Qxb7 {[%clk 0:02:33]}  Rc7 {[%clk 0:01:45]} 15. Qb3 {[%clk 0:02:22]}  Nd7 {[%clk 0:01:43]} 16. Rfe1 {[%clk 0:01:58]}  Nc5 {[%clk 0:01:43]} 17. Qd1 {[%clk 0:01:59]}  Qb8 {[%clk 0:01:40]} 18. Bc4 {[%clk 0:01:20]}  Ne4 {[%clk 0:00:58]} 19. Bb3 {[%clk 0:01:11]}  h6 {[%clk 0:00:53]} 20. Be3 {[%clk 0:01:03]}  Nf6 {[%clk 0:00:44]} 21. Nd4 {[%clk 0:00:59]}  Bd7 {[%clk 0:00:43]} 22. f3 {[%clk 0:00:50]}  h5 {[%clk 0:00:43]} 23. Qd2 {[%clk 0:00:49]}  Kh7 {[%clk 0:00:42]} 24. Rad1 {[%clk 0:00:50]}  a5 {[%clk 0:00:41]} 25. Bg5 {[%clk 0:00:35]}  a4 {[%clk 0:00:38]} 26. Bc2 {[%clk 0:00:31]}  Qxb2 {[%clk 0:00:31]} 27. Rxe7 {[%clk 0:00:31]}  Nxd5 {[%clk 0:00:31]} 28. Bxg6+ {[%clk 0:00:29]}  fxg6 {[%clk 0:00:23]} 29. Qxb2 {[%clk 0:00:30]}  Nxe7 {[%clk 0:00:22]} 30. Bxe7 {[%clk 0:00:29]}  Rfc8 {[%clk 0:00:20]} 31. Ne2 {[%clk 0:00:16]}  a3 {[%clk 0:00:12]} 32. Qxa3 {[%clk 0:00:16]}  Bb5 {[%clk 0:00:12]} 33. Bxd6 {[%clk 0:00:14]}  Bxe2 {[%clk 0:00:11]} 34. Bxc7 {[%clk 0:00:10]}  Bxd1 {[%clk 0:00:12]} 35. Ba5 {[%clk 0:00:07]}  Re8 {[%clk 0:00:07]} 36. Kf2 {[%clk 0:00:04]}  Re2+ {[%clk 0:00:04]} 37. Kf1 {[%clk 0:00:05]}  Rc2 {[%clk 0:00:04]} 38. Ke1 {[%clk 0:00:04]}  Be2 {[%clk 0:00:01]} 39. Qa4 {[%clk 0:00:05]}  Bd3 {[%clk 0:00:02]} 40. Qd7 {[%clk 0:00:03]}  Bf5 {[%clk 0:00:02]} 41. Qe7 {[%clk 0:00:02]}  Rxg2 {[%clk 0:00:02]} 42. Bb4 {[%clk 0:00:01]}  Kh6 {[%clk 0:00:01]} 43. Qd8 {[%clk 0:00:01]} 1-0


[Site "https://www.chess.com"]

[Event "Titled Tuesday Blitz June 6 Early 2023"]
[White "Amitpal, Singh"]
[Black "Shapiro, Viktor"]
[WhiteFideId "5012899"]
[BlackFideId "4175700"]
[WhiteElo "2107"]
[BlackElo "2212"]
[Result "0-1"]
[Round "8"]
[TimeControl "180+2"]
[Date "2023.06.06"]
[WhiteClock "0:00:01"]
[BlackClock "0:01:02"]
[Board "94"]

1. e4 {[%clk 0:03:00]}  Nf6 {[%clk 0:02:59]} 2. e5 {[%clk 0:03:00]}  Nd5 {[%clk 0:03:00]} 3. c4 {[%clk 0:02:56]}  Nb6 {[%clk 0:03:00]} 4. d4 {[%clk 0:02:54]}  d6 {[%clk 0:03:00]} 5. exd6 {[%clk 0:02:53]}  cxd6 {[%clk 0:03:01]} 6. Nc3 {[%clk 0:02:52]}  g6 {[%clk 0:03:01]} 7. Nf3 {[%clk 0:02:47]}  Bg4 {[%clk 0:03:00]} 8. Bg5 {[%clk 0:02:40]}  Bg7 {[%clk 0:03:00]} 9. Rc1 {[%clk 0:02:34]}  Nc6 {[%clk 0:02:57]} 10. d5 {[%clk 0:02:25]}  Nd4 {[%clk 0:02:53]} 11. Be3 {[%clk 0:02:05]}  Bxf3 {[%clk 0:02:49]} 12. gxf3 {[%clk 0:02:06]}  Nf5 {[%clk 0:02:49]} 13. Bd3 {[%clk 0:01:57]}  Nxe3 {[%clk 0:02:24]} 14. fxe3 {[%clk 0:01:58]}  e5 {[%clk 0:02:21]} 15. b3 {[%clk 0:01:35]}  Qh4+ {[%clk 0:02:20]} 16. Ke2 {[%clk 0:01:33]}  O-O {[%clk 0:02:18]} 17. Qe1 {[%clk 0:01:31]}  Qe7 {[%clk 0:02:16]} 18. h4 {[%clk 0:01:16]}  f5 {[%clk 0:02:15]} 19. Bb1 {[%clk 0:01:10]}  h5 {[%clk 0:01:50]} 20. Qg1 {[%clk 0:01:08]}  Kh7 {[%clk 0:01:47]} 21. Qg2 {[%clk 0:01:04]}  Bh6 {[%clk 0:01:44]} 22. Rcg1 {[%clk 0:00:58]}  Rf6 {[%clk 0:01:43]} 23. Rh3 {[%clk 0:00:51]}  Rg8 {[%clk 0:01:40]} 24. Rg3 {[%clk 0:00:49]}  Rg7 {[%clk 0:01:40]} 25. Nd1 {[%clk 0:00:34]}  Nd7 {[%clk 0:01:40]} 26. Nf2 {[%clk 0:00:34]}  a5 {[%clk 0:01:37]} 27. Nh3 {[%clk 0:00:29]}  Bxe3 {[%clk 0:01:31]} 28. Ng5+ {[%clk 0:00:24]}  Bxg5 {[%clk 0:01:31]} 29. Rxg5 {[%clk 0:00:25]}  Nc5 {[%clk 0:01:26]} 30. Qh3 {[%clk 0:00:15]}  e4 {[%clk 0:01:22]} 31. f4 {[%clk 0:00:14]}  b5 {[%clk 0:01:19]} 32. Qc3 {[%clk 0:00:11]}  b4 {[%clk 0:01:14]} 33. Qd4 {[%clk 0:00:10]}  Rff7 {[%clk 0:01:12]} 34. Ke3 {[%clk 0:00:09]}  Qf6 {[%clk 0:01:12]} 35. R5g2 {[%clk 0:00:01]}  Qxh4 {[%clk 0:01:08]} 36. Rg3 {[%clk 0:00:01]}  Qf6 {[%clk 0:01:07]} 37. R1g2 {[%clk 0:00:01]}  Qxd4+ {[%clk 0:01:07]} 38. Kxd4 {[%clk 0:00:01]}  Kh6 {[%clk 0:01:08]} 39. Ke3 {[%clk 0:00:02]}  Re7 {[%clk 0:01:07]} 40. Rg5 {[%clk 0:00:02]}  Ref7 {[%clk 0:01:07]} 41. Rh2 {[%clk 0:00:02]}  Rf6 {[%clk 0:01:07]} 42. Rgg2 {[%clk 0:00:02]}  a4 {[%clk 0:01:06]} 43. Rg5 {[%clk 0:00:03]}  axb3 {[%clk 0:01:06]} 44. axb3 {[%clk 0:00:04]}  Nxb3 {[%clk 0:01:06]} 45. Bc2 {[%clk 0:00:05]}  Nc5 {[%clk 0:01:06]} 46. Bd1 {[%clk 0:00:04]}  Ra7 {[%clk 0:01:04]} 47. Bxh5 {[%clk 0:00:04]}  Kg7 {[%clk 0:01:02]} 48. Be2 {[%clk 0:00:01]}  Ra3+ {[%clk 0:01:02]} 0-1


[Site "https://www.chess.com"]